[Event "*** Titled Tuesday Blitz"]
[Site "Chess.com"]
[Date "2020.12.29"]
[Round "6"]
[White "Arseniy_Nesterov"]
[Black "VerdeNotte"]
[Result "1-0"]
[WhiteElo "2796"]
[BlackElo "2885"]
[TimeControl "180+1"]
[EndTime "11:07:20 PST"]
[Termination "Arseniy_Nesterov won by resignation"]

1. d4 {[%clk 0:03:00.9]} 1... Nf6 {[%clk 0:02:59.1]} 2. c4 {[%clk 0:03:01.3]}
2... g6 {[%clk 0:02:59.2]} 3. Nc3 {[%clk 0:03:01.2]} 3... Bg7 {[%clk 0:02:59.7]}
4. e4 {[%clk 0:03:01.1]} 4... d6 {[%clk 0:02:59.1]} 5. Be2 {[%clk 0:03:01.3]}
5... O-O {[%clk 0:02:58.6]} 6. Be3 {[%clk 0:03:01.8]} 6... e5 {[%clk 0:02:54.8]}
7. d5 {[%clk 0:03:01.6]} 7... Na6 {[%clk 0:02:54]} 8. g4 {[%clk 0:03:00.3]} 8...
Nc5 {[%clk 0:02:53.8]} 9. f3 {[%clk 0:02:59.1]} 9... a5 {[%clk 0:02:49.6]} 10.
h4 {[%clk 0:02:58.2]} 10... h5 {[%clk 0:02:48.2]} 11. g5 {[%clk 0:02:58]} 11...
Nfd7 {[%clk 0:02:43.1]} 12. Qd2 {[%clk 0:02:56.3]} 12... a4 {[%clk 0:02:39.8]}
13. Nh3 {[%clk 0:02:48.6]} 13... Nb6 {[%clk 0:02:34.5]} 14. Nf2 {[%clk
0:02:45.2]} 14... Bd7 {[%clk 0:02:32]} 15. O-O-O {[%clk 0:02:35.7]} 15... a3
{[%clk 0:02:28.5]} 16. b3 {[%clk 0:02:22.1]} 16... Na6 {[%clk 0:02:26]} 17. Nd3
{[%clk 0:02:18]} 17... c5 {[%clk 0:02:22.9]} 18. dxc6 {[%clk 0:01:49.1]} 18...
bxc6 {[%clk 0:02:22.4]} 19. c5 {[%clk 0:01:46.2]} 19... d5 {[%clk 0:02:21.3]}
20. cxb6 {[%clk 0:01:33.3]} 20... d4 {[%clk 0:02:21.5]} 21. Nxe5 {[%clk
0:01:28.8]} 21... dxe3 {[%clk 0:02:11.9]} 22. Qxd7 {[%clk 0:01:25.2]} 22... Bxe5
{[%clk 0:02:00.9]} 23. Qxd8 {[%clk 0:01:24.6]} 23... Raxd8 {[%clk 0:01:56.1]}
24. Rxd8 {[%clk 0:01:23.6]} 24... Rxd8 {[%clk 0:01:55.9]} 25. Bxa6 {[%clk
0:01:23.6]} 25... Bxc3 {[%clk 0:01:55.5]} 26. Rd1 {[%clk 0:01:00.9]} 26... Bd2+
{[%clk 0:01:54.6]} 27. Kc2 {[%clk 0:00:59.3]} 27... Kf8 {[%clk 0:01:49.6]} 28.
b7 {[%clk 0:00:47.7]} 28... Ke7 {[%clk 0:01:47]} 29. f4 {[%clk 0:00:47.5]} 29...
Kd6 {[%clk 0:01:42.3]} 30. Kd3 {[%clk 0:00:31.3]} 30... Kc7+ {[%clk 0:01:36.5]}
31. Ke2 {[%clk 0:00:31.5]} 31... Rf8 {[%clk 0:01:01.7]} 32. Rf1 {[%clk
0:00:23.5]} 32... Kb6 {[%clk 0:00:53.7]} 33. Bc4 {[%clk 0:00:23]} 33... Kxb7
{[%clk 0:00:53.6]} 34. f5 {[%clk 0:00:23.3]} 34... gxf5 {[%clk 0:00:51.9]} 35.
Rxf5 {[%clk 0:00:22.7]} 35... Re8 {[%clk 0:00:47.8]} 36. e5 {[%clk 0:00:18.8]}
36... Rd8 {[%clk 0:00:40]} 37. Bxf7 {[%clk 0:00:14.7]} 37... Rd4 {[%clk
0:00:40]} 38. e6 {[%clk 0:00:10.1]} 38... Re4 {[%clk 0:00:34.2]} 39. g6 {[%clk
0:00:09.8]} 39... Bc3 {[%clk 0:00:29.8]} 40. Rxh5 {[%clk 0:00:09.4]} 40... Kc7
{[%clk 0:00:26.2]} 41. Rg5 {[%clk 0:00:08.2]} 41... Bg7 {[%clk 0:00:24.5]} 42.
h5 {[%clk 0:00:07.2]} 42... Kd6 {[%clk 0:00:14.8]} 43. Rg3 {[%clk 0:00:07.4]}
43... Rh4 {[%clk 0:00:13.8]} 44. Rxe3 {[%clk 0:00:06.9]} 44... Ke7 {[%clk
0:00:12.6]} 45. Rd3 {[%clk 0:00:05.3]} 45... Rh2+ {[%clk 0:00:11.8]} 46. Kf3
{[%clk 0:00:05.5]} 46... Rh3+ {[%clk 0:00:07.4]} 47. Ke2 {[%clk 0:00:05.8]}
47... Rh2+ {[%clk 0:00:07.6]} 48. Ke3 {[%clk 0:00:05.6]} 48... Bh6+ {[%clk
0:00:05.4]} 49. Kf3 {[%clk 0:00:05]} 49... Rh3+ {[%clk 0:00:03.9]} 50. Ke4
{[%clk 0:00:05.1]} 50... Rh4+ {[%clk 0:00:04.2]} 51. Kf3 {[%clk 0:00:04.7]}
51... Rh3+ {[%clk 0:00:04.5]} 52. Ke2 {[%clk 0:00:05.1]} 52... Rh2+ {[%clk
0:00:04.7]} 53. Kd1 {[%clk 0:00:05.4]} 53... Rxa2 {[%clk 0:00:02.8]} 54. Rd7+
{[%clk 0:00:05.7]} 54... Kf6 {[%clk 0:00:03.3]} 55. e7 {[%clk 0:00:05.4]} 55...
Ra1+ {[%clk 0:00:03.9]} 56. Kc2 {[%clk 0:00:05.4]} 56... Re1 {[%clk 0:00:03.4]}
57. e8=Q {[%clk 0:00:05.1]} 57... Rxe8 {[%clk 0:00:03.3]} 58. Bxe8 {[%clk
0:00:06]} 58... a2 {[%clk 0:00:03.9]} 59. Ra7 {[%clk 0:00:06.6]} 59... Kg5
{[%clk 0:00:03.4]} 60. Rxa2 {[%clk 0:00:06.9]} 60... Bg7 {[%clk 0:00:04]} 61.
Bf7 {[%clk 0:00:07.6]} 61... Kh6 {[%clk 0:00:04.7]} 62. Ra6 {[%clk 0:00:08.2]}
62... c5 {[%clk 0:00:04.9]} 63. Rc6 {[%clk 0:00:09.1]} 63... Bd4 {[%clk
0:00:05.1]} 64. Kd3 {[%clk 0:00:10]} 64... Kg7 {[%clk 0:00:05.6]} 65. Kc4 {[%clk
0:00:10.9]} 65... Be3 {[%clk 0:00:06.1]} 66. Rxc5 {[%clk 0:00:11.8]} 66... Bxc5
{[%clk 0:00:06.1]} 67. Kxc5 {[%clk 0:00:12.7]} 1-0

[Event "*** Titled Tuesday Blitz"]
[Site "Chess.com"]
[Date "2020.12.29"]
[Round "6"]
[White "noblerone"]
[Black "Tagliata"]
[Result "1-0"]
[WhiteElo "2449"]
[BlackElo "2300"]
[TimeControl "180+1"]
[EndTime "11:07:20 PST"]
[Termination "noblerone won by checkmate"]

1. d4 {[%clk 0:03:00.9]} 1... d5 {[%clk 0:02:59.4]} 2. Nf3 {[%clk 0:03:00.7]}
2... e6 {[%clk 0:02:59.4]} 3. Bg5 {[%clk 0:02:59.6]} 3... Be7 {[%clk 0:02:59.1]}
4. Bxe7 {[%clk 0:02:58.9]} 4... Qxe7 {[%clk 0:02:59.8]} 5. Nbd2 {[%clk
0:02:59.8]} 5... f5 {[%clk 0:02:59.6]} 6. Ne5 {[%clk 0:02:59.4]} 6... Nf6 {[%clk
0:03:00.2]} 7. e3 {[%clk 0:02:59.6]} 7... Nbd7 {[%clk 0:03:00.1]} 8. Ndf3 {[%clk
0:03:00.2]} 8... O-O {[%clk 0:02:59.7]} 9. Bd3 {[%clk 0:03:00.2]} 9... c6 {[%clk
0:02:59.4]} 10. O-O {[%clk 0:03:00]} 10... Nxe5 {[%clk 0:02:58.7]} 11. Nxe5
{[%clk 0:02:59.7]} 11... Nd7 {[%clk 0:02:59.4]} 12. Nf3 {[%clk 0:02:59.2]} 12...
e5 {[%clk 0:02:58.9]} 13. dxe5 {[%clk 0:02:52.9]} 13... Nxe5 {[%clk 0:02:58.8]}
14. c3 {[%clk 0:02:50.4]} 14... Bd7 {[%clk 0:02:54.3]} 15. Be2 {[%clk
0:02:43.6]} 15... Rae8 {[%clk 0:02:45.8]} 16. Qd4 {[%clk 0:02:42.9]} 16... Ng4
{[%clk 0:02:30.2]} 17. h3 {[%clk 0:02:33.9]} 17... Nf6 {[%clk 0:02:21.9]} 18.
Rae1 {[%clk 0:02:29.3]} 18... a6 {[%clk 0:02:20.3]} 19. Qb6 {[%clk 0:02:24.3]}
19... Bc8 {[%clk 0:02:19.1]} 20. a4 {[%clk 0:02:17.8]} 20... Ne4 {[%clk
0:02:17.6]} 21. b4 {[%clk 0:02:14.9]} 21... Nxc3 {[%clk 0:02:14.1]} 22. b5
{[%clk 0:02:11.9]} 22... axb5 {[%clk 0:02:11.6]} 23. axb5 {[%clk 0:02:11.6]}
23... Qd7 {[%clk 0:01:40.4]} 24. Qc5 {[%clk 0:01:58.8]} 24... Ne4 {[%clk
0:01:38]} 25. Qd4 {[%clk 0:01:56.5]} 25... c5 {[%clk 0:01:36.5]} 26. Qb2 {[%clk
0:01:52.8]} 26... b6 {[%clk 0:01:36.5]} 27. Rd1 {[%clk 0:01:52.5]} 27... Bb7
{[%clk 0:01:36.4]} 28. Bd3 {[%clk 0:01:50.1]} 28... Qf7 {[%clk 0:01:32.6]} 29.
Ra1 {[%clk 0:01:42.7]} 29... Ra8 {[%clk 0:01:29.9]} 30. Rfd1 {[%clk 0:01:40.4]}
30... Qc7 {[%clk 0:01:16.3]} 31. Nh4 {[%clk 0:01:29.5]} 31... f4 {[%clk
0:01:10.3]} 32. Rxa8 {[%clk 0:01:22.6]} 32... Bxa8 {[%clk 0:01:08.2]} 33. Bxe4
{[%clk 0:01:19.2]} 33... dxe4 {[%clk 0:01:07.8]} 34. Qa2+ {[%clk 0:00:56]} 34...
Kh8 {[%clk 0:01:06]} 35. Qe6 {[%clk 0:00:55.4]} 35... fxe3 {[%clk 0:01:00.1]}
36. fxe3 {[%clk 0:00:55.6]} 36... Qg3 {[%clk 0:00:56.7]} 37. Nf5 {[%clk
0:00:42.4]} 37... Qg6 {[%clk 0:00:37.2]} 38. Qxg6 {[%clk 0:00:31.9]} 38... hxg6
{[%clk 0:00:36.7]} 39. Ne7 {[%clk 0:00:25.6]} 39... Kh7 {[%clk 0:00:29]} 40. Rd6
{[%clk 0:00:25.8]} 40... Rf6 {[%clk 0:00:25.5]} 41. Rd8 {[%clk 0:00:25.9]} 41...
Bb7 {[%clk 0:00:24.5]} 42. Rb8 {[%clk 0:00:22.8]} 42... Rf7 {[%clk 0:00:17.7]}
43. Rxb7 {[%clk 0:00:22.6]} 43... c4 {[%clk 0:00:17.5]} 44. Rxb6 {[%clk
0:00:17.1]} 44... Rxe7 {[%clk 0:00:16.3]} 45. Rc6 {[%clk 0:00:17.7]} 45... Rb7
{[%clk 0:00:14.7]} 46. Rxc4 {[%clk 0:00:17.6]} 46... Rxb5 {[%clk 0:00:15.6]} 47.
Rxe4 {[%clk 0:00:18.2]} 47... Kh6 {[%clk 0:00:15.8]} 48. Kf2 {[%clk 0:00:18.4]}
48... g5 {[%clk 0:00:16]} 49. Kf3 {[%clk 0:00:18.8]} 49... Kg6 {[%clk
0:00:16.2]} 50. Re6+ {[%clk 0:00:18.3]} 50... Kf5 {[%clk 0:00:15.6]} 51. Ra6
{[%clk 0:00:19.2]} 51... Rc5 {[%clk 0:00:15.1]} 52. g4+ {[%clk 0:00:17.2]} 52...
Ke5 {[%clk 0:00:15.2]} 53. Rg6 {[%clk 0:00:17.8]} 53... Rc7 {[%clk 0:00:13.8]}
54. Rxg5+ {[%clk 0:00:17.6]} 54... Kf6 {[%clk 0:00:14.7]} 55. Rf5+ {[%clk
0:00:18.1]} 55... Ke6 {[%clk 0:00:14.4]} 56. h4 {[%clk 0:00:17.6]} 56... g6
{[%clk 0:00:15]} 57. Ra5 {[%clk 0:00:16.4]} 57... Kf6 {[%clk 0:00:15.9]} 58. h5
{[%clk 0:00:15]} 58... Kg7 {[%clk 0:00:16.8]} 59. Rg5 {[%clk 0:00:14]} 59... Kf7
{[%clk 0:00:15.9]} 60. Rxg6 {[%clk 0:00:14.1]} 60... Rc1 {[%clk 0:00:16.3]} 61.
Kf4 {[%clk 0:00:14.1]} 61... Rd1 {[%clk 0:00:16.5]} 62. e4 {[%clk 0:00:14.1]}
62... Rf1+ {[%clk 0:00:16.3]} 63. Kg5 {[%clk 0:00:14.5]} 63... Ra1 {[%clk
0:00:17.1]} 64. e5 {[%clk 0:00:14.4]} 64... Re1 {[%clk 0:00:16.4]} 65. e6+
{[%clk 0:00:14.1]} 65... Kf8 {[%clk 0:00:17]} 66. Rf6+ {[%clk 0:00:14]} 66...
Kg7 {[%clk 0:00:17]} 67. Rf7+ {[%clk 0:00:13.8]} 67... Kg8 {[%clk 0:00:17.2]}
68. Kf5 {[%clk 0:00:12.6]} 68... Rf1+ {[%clk 0:00:16.4]} 69. Kg6 {[%clk
0:00:13]} 69... Re1 {[%clk 0:00:16.1]} 70. Rf6 {[%clk 0:00:13.1]} 70... Re2
{[%clk 0:00:15.5]} 71. g5 {[%clk 0:00:13]} 71... Re1 {[%clk 0:00:15.1]} 72. h6
{[%clk 0:00:13.2]} 72... Re2 {[%clk 0:00:14.4]} 73. h7+ {[%clk 0:00:13.4]} 73...
Kh8 {[%clk 0:00:14.3]} 74. Rf8# {[%clk 0:00:14.3]} 1-0

[Event "*** Titled Tuesday Blitz"]
[Site "Chess.com"]
[Date "2020.12.29"]
[Round "6"]
[White "brunomorado"]
[Black "AdarshIsMe"]
[Result "1/2-1/2"]
[WhiteElo "2417"]
[BlackElo "2204"]
[TimeControl "180+1"]
[EndTime "11:07:23 PST"]
[Termination "Game drawn by repetition"]

1. d4 {[%clk 0:03:00.6]} 1... Nf6 {[%clk 0:02:59.7]} 2. Nc3 {[%clk 0:03:00.7]}
2... d5 {[%clk 0:02:59.2]} 3. Bg5 {[%clk 0:03:00.9]} 3... Nbd7 {[%clk
0:02:55.8]} 4. Qd3 {[%clk 0:03:00.8]} 4... e6 {[%clk 0:02:47.2]} 5. e4 {[%clk
0:02:59.5]} 5... dxe4 {[%clk 0:02:47]} 6. Nxe4 {[%clk 0:03:00.4]} 6... Be7
{[%clk 0:02:46.9]} 7. Bxf6 {[%clk 0:03:00.8]} 7... Nxf6 {[%clk 0:02:46.5]} 8. g3
{[%clk 0:03:01.3]} 8... O-O {[%clk 0:02:45.8]} 9. Bg2 {[%clk 0:03:00.9]} 9...
Bd7 {[%clk 0:02:37.2]} 10. Ne2 {[%clk 0:02:59.1]} 10... Bc6 {[%clk 0:02:36.7]}
11. Nxf6+ {[%clk 0:02:59.1]} 11... Bxf6 {[%clk 0:02:34.4]} 12. Bxc6 {[%clk
0:02:59.3]} 12... bxc6 {[%clk 0:02:35.3]} 13. c3 {[%clk 0:02:58.9]} 13... c5
{[%clk 0:02:34.4]} 14. Rd1 {[%clk 0:02:51.2]} 14... Qd5 {[%clk 0:02:31.6]} 15.
O-O {[%clk 0:02:49.6]} 15... cxd4 {[%clk 0:02:19.4]} 16. Nxd4 {[%clk 0:02:42.8]}
16... Qxa2 {[%clk 0:02:16.9]} 17. b4 {[%clk 0:02:13]} 17... Rfd8 {[%clk
0:02:10.1]} 18. Qe4 {[%clk 0:02:10.3]} 18... Qd5 {[%clk 0:02:02.8]} 19. Qxd5
{[%clk 0:02:05.2]} 19... Rxd5 {[%clk 0:02:01.6]} 20. Nc6 {[%clk 0:02:05.6]}
20... Kf8 {[%clk 0:01:50]} 21. c4 {[%clk 0:02:02.5]} 21... Rd6 {[%clk
0:01:45.2]} 22. b5 {[%clk 0:02:00.9]} 22... Ke8 {[%clk 0:01:38.4]} 23. Ra1
{[%clk 0:01:43.4]} 23... Bxa1 {[%clk 0:01:37.5]} 24. Rxa1 {[%clk 0:01:44.3]}
24... Kd7 {[%clk 0:01:29.4]} 25. Nxa7 {[%clk 0:01:29.7]} 25... Rd4 {[%clk
0:01:17.2]} 26. c5 {[%clk 0:01:25.4]} 26... e5 {[%clk 0:01:05.7]} 27. b6 {[%clk
0:01:08.8]} 27... cxb6 {[%clk 0:01:05.4]} 28. c6+ {[%clk 0:00:50.5]} 28... Ke6
{[%clk 0:01:00.4]} 29. Ra6 {[%clk 0:00:42.7]} 29... Rc4 {[%clk 0:00:54.9]} 30.
c7 {[%clk 0:00:21.1]} 30... Rxc7 {[%clk 0:00:50]} 31. Rxb6+ {[%clk 0:00:20.1]}
31... Kf5 {[%clk 0:00:44.1]} 32. Nb5 {[%clk 0:00:18.6]} 32... Rd7 {[%clk
0:00:32.2]} 33. Nd6+ {[%clk 0:00:13.9]} 33... Ke6 {[%clk 0:00:23.5]} 34. Ne4+
{[%clk 0:00:12.1]} 34... Kd5 {[%clk 0:00:20.6]} 35. Ng5 {[%clk 0:00:08.8]} 35...
h6 {[%clk 0:00:19.7]} 36. Nf3 {[%clk 0:00:08.7]} 36... e4 {[%clk 0:00:19.2]} 37.
Nh4 {[%clk 0:00:07.8]} 37... g6 {[%clk 0:00:18.7]} 38. h3 {[%clk 0:00:07.9]}
38... Ra2 {[%clk 0:00:18]} 39. Ng2 {[%clk 0:00:07.9]} 39... Kc5 {[%clk
0:00:18.1]} 40. Rb1 {[%clk 0:00:07.1]} 40... Re7 {[%clk 0:00:18.1]} 41. Ne3
{[%clk 0:00:06.8]} 41... Kd4 {[%clk 0:00:17.6]} 42. Rd1+ {[%clk 0:00:06.9]}
42... Ke5 {[%clk 0:00:15.1]} 43. Rd5+ {[%clk 0:00:07]} 43... Ke6 {[%clk
0:00:15.3]} 44. Rb5 {[%clk 0:00:07]} 44... Ra1+ {[%clk 0:00:15.3]} 45. Kg2
{[%clk 0:00:07.4]} 45... f5 {[%clk 0:00:15.3]} 46. h4 {[%clk 0:00:07.7]} 46...
Kf6 {[%clk 0:00:15.2]} 47. Nd5+ {[%clk 0:00:07.9]} 47... Kf7 {[%clk 0:00:15.6]}
48. Nxe7 {[%clk 0:00:08.8]} 48... Kxe7 {[%clk 0:00:16.5]} 49. Rb6 {[%clk
0:00:09.3]} 49... Kf7 {[%clk 0:00:16.6]} 50. h5 {[%clk 0:00:09.8]} 50... gxh5
{[%clk 0:00:10.4]} 51. Rxh6 {[%clk 0:00:10.7]} 51... Ra2 {[%clk 0:00:10.6]} 52.
Rxh5 {[%clk 0:00:10.9]} 52... Kg6 {[%clk 0:00:10.1]} 53. Rh4 {[%clk 0:00:09.3]}
53... e3 {[%clk 0:00:10.3]} 54. Kf3 {[%clk 0:00:09.1]} 54... exf2 {[%clk
0:00:05.3]} 55. Rh1 {[%clk 0:00:09.1]} 55... Kg5 {[%clk 0:00:05.8]} 56. Rf1
{[%clk 0:00:09.1]} 56... Ra3+ {[%clk 0:00:03]} 57. Kxf2 {[%clk 0:00:09.1]} 57...
Ra2+ {[%clk 0:00:03.9]} 58. Kf3 {[%clk 0:00:09.5]} 58... Ra3+ {[%clk 0:00:04.3]}
59. Kg2 {[%clk 0:00:10.1]} 59... Ra2+ {[%clk 0:00:04.8]} 60. Kh3 {[%clk
0:00:10.7]} 60... Ra3 {[%clk 0:00:05.5]} 61. Rf4 {[%clk 0:00:11.2]} 61... Ra1
{[%clk 0:00:05.5]} 62. Rb4 {[%clk 0:00:10.3]} 62... Rh1+ {[%clk 0:00:05.3]} 63.
Kg2 {[%clk 0:00:10.9]} 63... Ra1 {[%clk 0:00:06]} 64. Rb8 {[%clk 0:00:11.7]}
64... Ra2+ {[%clk 0:00:06.5]} 65. Kh3 {[%clk 0:00:12.2]} 65... Ra1 {[%clk
0:00:06.4]} 66. Rg8+ {[%clk 0:00:12.4]} 66... Kf6 {[%clk 0:00:07.1]} 67. Rf8+
{[%clk 0:00:12.1]} 67... Kg5 {[%clk 0:00:07.5]} 68. Rg8+ {[%clk 0:00:12]} 68...
Kf6 {[%clk 0:00:08]} 69. Kg2 {[%clk 0:00:11.8]} 69... Ra2+ {[%clk 0:00:08]} 70.
Kh3 {[%clk 0:00:11.9]} 70... Ra1 {[%clk 0:00:08.6]} 1/2-1/2

[Event "*** Titled Tuesday Blitz"]
[Site "Chess.com"]
[Date "2020.12.29"]
[Round "6"]
[White "Vusatiuk_Vladimir"]
[Black "Moon_stone123"]
[Result "1-0"]
[WhiteElo "2312"]
[BlackElo "2428"]
[TimeControl "180+1"]
[EndTime "11:07:24 PST"]
[Termination "Vusatiuk_Vladimir won by resignation"]

1. d4 {[%clk 0:02:57.4]} 1... Nf6 {[%clk 0:02:59.3]} 2. c4 {[%clk 0:02:57.9]}
2... g6 {[%clk 0:02:59]} 3. Nc3 {[%clk 0:02:58.3]} 3... Bg7 {[%clk 0:02:59.6]}
4. e4 {[%clk 0:02:58.6]} 4... d6 {[%clk 0:02:59.9]} 5. Be2 {[%clk 0:02:59]} 5...
O-O {[%clk 0:03:00.5]} 6. Bg5 {[%clk 0:02:59.3]} 6... c5 {[%clk 0:02:58.6]} 7.
d5 {[%clk 0:02:59.4]} 7... h6 {[%clk 0:02:56.9]} 8. Be3 {[%clk 0:02:59.1]} 8...
e6 {[%clk 0:02:56.8]} 9. Qd2 {[%clk 0:02:59.2]} 9... Kh7 {[%clk 0:02:50.9]} 10.
f3 {[%clk 0:02:40.4]} 10... exd5 {[%clk 0:02:50.4]} 11. cxd5 {[%clk 0:02:41.3]}
11... a6 {[%clk 0:02:44.2]} 12. a4 {[%clk 0:02:41.3]} 12... Qa5 {[%clk
0:02:43.8]} 13. g4 {[%clk 0:02:30.5]} 13... Nfd7 {[%clk 0:01:45.3]} 14. h4
{[%clk 0:02:22.9]} 14... b5 {[%clk 0:01:40.9]} 15. h5 {[%clk 0:02:21.1]} 15...
g5 {[%clk 0:01:38.5]} 16. Nh3 {[%clk 0:02:19.7]} 16... Ne5 {[%clk 0:01:30]} 17.
Kf2 {[%clk 0:02:14.3]} 17... Nbd7 {[%clk 0:01:02.5]} 18. axb5 {[%clk 0:02:11.4]}
18... Qb6 {[%clk 0:01:02.4]} 19. Kg2 {[%clk 0:01:47.8]} 19... Nf6 {[%clk
0:00:51.6]} 20. bxa6 {[%clk 0:01:14.1]} 20... Bxa6 {[%clk 0:00:52.5]} 21. Rab1
{[%clk 0:00:56.4]} 21... Bxe2 {[%clk 0:00:51.4]} 22. Qxe2 {[%clk 0:00:55.1]}
22... Rfb8 {[%clk 0:00:50.2]} 23. b4 {[%clk 0:00:54.4]} 23... Qa6 {[%clk
0:00:41.2]} 24. Qxa6 {[%clk 0:00:53.7]} 24... Rxa6 {[%clk 0:00:42.1]} 25. bxc5
{[%clk 0:00:50.9]} 25... Rxb1 {[%clk 0:00:40.5]} 26. Rxb1 {[%clk 0:00:51.8]}
26... dxc5 {[%clk 0:00:40.5]} 27. Bxc5 {[%clk 0:00:48.4]} 27... Nd3 {[%clk
0:00:37.7]} 28. Bd4 {[%clk 0:00:39.7]} 28... Ra3 {[%clk 0:00:29.4]} 29. Rd1
{[%clk 0:00:35.1]} 29... Nb4 {[%clk 0:00:25.3]} 30. d6 {[%clk 0:00:32.9]} 30...
Nc2 {[%clk 0:00:25]} 31. Nb5 {[%clk 0:00:18.7]} 31... Rb3 {[%clk 0:00:21.6]} 32.
Nc7 {[%clk 0:00:14.9]} 32... Nd7 {[%clk 0:00:16.2]} 33. Bf2 {[%clk 0:00:08.7]}
33... Rb2 {[%clk 0:00:15.8]} 34. Rd2 {[%clk 0:00:08.6]} 34... Bc3 {[%clk
0:00:13.8]} 35. Re2 {[%clk 0:00:09.2]} 35... Be5 {[%clk 0:00:12.7]} 36. Nd5
{[%clk 0:00:03.2]} 36... Bxd6 {[%clk 0:00:12.3]} 37. Bd4 {[%clk 0:00:03.9]}
37... Ra2 {[%clk 0:00:11.8]} 38. Nc3 {[%clk 0:00:04.4]} 38... Nxd4 {[%clk
0:00:07.8]} 39. Rxa2 {[%clk 0:00:04.2]} 39... Be5 {[%clk 0:00:08.4]} 40. Rd2
{[%clk 0:00:04.4]} 40... Nf6 {[%clk 0:00:08.1]} 41. Ne2 {[%clk 0:00:04.8]} 41...
Ne6 {[%clk 0:00:08.3]} 42. Ng3 {[%clk 0:00:04.1]} 42... Kg8 {[%clk 0:00:07.3]}
43. Nf5 {[%clk 0:00:04.5]} 43... Bc3 {[%clk 0:00:05.6]} 44. Rc2 {[%clk
0:00:04.6]} 44... Be5 {[%clk 0:00:05.1]} 45. Nxh6+ {[%clk 0:00:05.1]} 45... Kh7
{[%clk 0:00:05.1]} 46. Nf5 {[%clk 0:00:06]} 46... Nd4 {[%clk 0:00:04.9]} 47. Rc5
{[%clk 0:00:04.7]} 47... Nxf5 {[%clk 0:00:01.1]} 48. Rxe5 {[%clk 0:00:04]} 48...
Ne3+ {[%clk 0:00:01.6]} 49. Kf2 {[%clk 0:00:04.4]} 49... Nc4 {[%clk 0:00:02.5]}
50. Rc5 {[%clk 0:00:05]} 50... Nd6 {[%clk 0:00:02.5]} 51. Nxg5+ {[%clk
0:00:05.6]} 51... Kh6 {[%clk 0:00:02.4]} 52. Nxf7+ {[%clk 0:00:05.9]} 52... Nxf7
{[%clk 0:00:03.3]} 53. Rf5 {[%clk 0:00:06.5]} 53... Kg7 {[%clk 0:00:03]} 54. h6+
{[%clk 0:00:07]} 54... Nxh6 {[%clk 0:00:03.3]} 55. Ra5 {[%clk 0:00:05.8]} 55...
Nf7 {[%clk 0:00:03.8]} 56. Kg3 {[%clk 0:00:05.8]} 56... Nh7 {[%clk 0:00:03.9]}
57. Kf4 {[%clk 0:00:06]} 57... Nf8 {[%clk 0:00:04.3]} 58. Ra6 {[%clk 0:00:06]}
58... Ng6+ {[%clk 0:00:04.5]} 59. Kg3 {[%clk 0:00:06.7]} 59... Nf8 {[%clk
0:00:04.8]} 60. f4 {[%clk 0:00:07.2]} 60... Ng6 {[%clk 0:00:04.8]} 61. e5 {[%clk
0:00:07.7]} 61... Nf8 {[%clk 0:00:04.8]} 62. Ra7 {[%clk 0:00:07.9]} 62... Kg6
{[%clk 0:00:04.5]} 63. f5+ {[%clk 0:00:08]} 63... Kg7 {[%clk 0:00:04.1]} 64. e6
{[%clk 0:00:08.6]} 64... Kg8 {[%clk 0:00:04.6]} 65. Rxf7 {[%clk 0:00:08.7]}
65... Nh7 {[%clk 0:00:05]} 66. Rxh7 {[%clk 0:00:08.6]} 66... Kf8 {[%clk
0:00:05.1]} 67. e7+ {[%clk 0:00:09.5]} 67... Kg8 {[%clk 0:00:04.7]} 68. e8=Q+
{[%clk 0:00:09.2]} 68... Kxh7 {[%clk 0:00:05.6]} 69. Qg6+ {[%clk 0:00:09.6]}
69... Kh8 {[%clk 0:00:06.2]} 70. Qg5 {[%clk 0:00:10.5]} 70... Kh7 {[%clk
0:00:06.1]} 71. Kf4 {[%clk 0:00:11.4]} 1-0